[Event "Late-Titled-Tuesday-Blitz-January-30-2024"]
[Site "Chess.com"]
[Date "2024.01.30"]
[Round "3"]
[White "cristiano78"]
[Black "malakismayil"]
[Result "0-1"]
[WhiteElo "2302"]
[BlackElo "2561"]
[TimeControl "180+1"]
[EndTime "14:30:09 PST"]
[Termination "malakismayil won by resignation"]

1. d4 {[%clk 0:03:00.9]} 1... Nf6 {[%clk 0:02:58.7]} 2. c4 {[%clk 0:02:59.9]}
2... e6 {[%clk 0:02:58.8]} 3. Nf3 {[%clk 0:02:59]} 3... d5 {[%clk 0:02:59.4]} 4.
Nc3 {[%clk 0:02:58.4]} 4... Be7 {[%clk 0:02:56.9]} 5. Bg5 {[%clk 0:02:57.2]}
5... O-O {[%clk 0:02:54.1]} 6. e3 {[%clk 0:02:56.6]} 6... h6 {[%clk 0:02:51.7]}
7. Bxf6 {[%clk 0:02:55.7]} 7... Bxf6 {[%clk 0:02:52.6]} 8. Rc1 {[%clk
0:02:53.3]} 8... c5 {[%clk 0:02:52.4]} 9. cxd5 {[%clk 0:02:52.3]} 9... cxd4
{[%clk 0:02:46.7]} 10. Nxd4 {[%clk 0:02:51.6]} 10... exd5 {[%clk 0:02:46]} 11.
Be2 {[%clk 0:02:49.7]} 11... Nc6 {[%clk 0:02:45.8]} 12. Nxc6 {[%clk 0:02:43.7]}
12... bxc6 {[%clk 0:02:46.7]} 13. O-O {[%clk 0:02:43]} 13... Rb8 {[%clk
0:02:46]} 14. b3 {[%clk 0:02:42.4]} 14... Bf5 {[%clk 0:02:28.3]} 15. Na4 {[%clk
0:02:41]} 15... Qd6 {[%clk 0:02:28.3]} 16. Bf3 {[%clk 0:02:30.6]} 16... Be5
{[%clk 0:02:06.3]} 17. g3 {[%clk 0:02:29]} 17... Rbc8 {[%clk 0:01:56.9]} 18. Qd2
{[%clk 0:02:23.9]} 18... Bh3 {[%clk 0:01:50]} 19. Rfd1 {[%clk 0:02:22.7]} 19...
Qf6 {[%clk 0:01:47.1]} 20. Bh1 {[%clk 0:02:17.9]} 20... Bg4 {[%clk 0:01:45.8]}
21. f3 {[%clk 0:02:04.7]} 21... Bh3 {[%clk 0:01:45.3]} 22. f4 {[%clk 0:01:59.5]}
22... Bb8 {[%clk 0:01:41.4]} 23. Nc5 {[%clk 0:01:57.1]} 23... Rfe8 {[%clk
0:01:36.8]} 24. e4 {[%clk 0:01:54.3]} 24... dxe4 {[%clk 0:01:32.8]} 25. Nxe4
{[%clk 0:01:50.5]} 25... Qg6 {[%clk 0:01:30]} 26. Nf2 {[%clk 0:01:45]} 26... Bf5
{[%clk 0:01:24.2]} 27. Re1 {[%clk 0:01:36.4]} 27... Red8 {[%clk 0:01:22.7]} 28.
Qe3 {[%clk 0:01:30.6]} 28... h5 {[%clk 0:01:20.4]} 29. Rc5 {[%clk 0:01:24.6]}
29... a6 {[%clk 0:01:15.3]} 30. Rxf5 {[%clk 0:00:56]} 30... Qxf5 {[%clk
0:01:11.9]} 31. Be4 {[%clk 0:00:55.6]} 31... Qf6 {[%clk 0:01:07.1]} 32. Qf3
{[%clk 0:00:53.8]} 32... g6 {[%clk 0:00:41.4]} 33. Rc1 {[%clk 0:00:47.9]} 33...
Ba7 {[%clk 0:00:33.4]} 34. Rc2 {[%clk 0:00:44.5]} 34... c5 {[%clk 0:00:22.7]}
35. Kg2 {[%clk 0:00:39.9]} 35... Bb8 {[%clk 0:00:19.6]} 36. Bd5 {[%clk
0:00:37.8]} 36... Qd4 {[%clk 0:00:16.3]} 37. Bc4 {[%clk 0:00:34]} 37... Re8
{[%clk 0:00:16.4]} 38. Nh3 {[%clk 0:00:27.2]} 38... Qe4 {[%clk 0:00:04.4]} 39.
Re2 {[%clk 0:00:22]} 39... Qxf3+ {[%clk 0:00:04.2]} 40. Kxf3 {[%clk 0:00:22.2]}
40... Rxe2 {[%clk 0:00:04.9]} 41. Kxe2 {[%clk 0:00:22.2]} 41... Kg7 {[%clk
0:00:05.8]} 42. Ng5 {[%clk 0:00:21.6]} 42... Re8+ {[%clk 0:00:05.7]} 43. Kf3
{[%clk 0:00:21]} 43... Re7 {[%clk 0:00:05.1]} 44. Ne4 {[%clk 0:00:18.8]} 44...
Ba7 {[%clk 0:00:04.5]} 45. Nd6 {[%clk 0:00:18.6]} 45... a5 {[%clk 0:00:02.3]}
46. Nc8 {[%clk 0:00:17.5]} 46... Rc7 {[%clk 0:00:02.8]} 47. Nxa7 {[%clk
0:00:16.9]} 47... Rxa7 {[%clk 0:00:03]} 48. Ke4 {[%clk 0:00:17.4]} 48... Rd7
{[%clk 0:00:03.6]} 49. Bd5 {[%clk 0:00:13.5]} 49... Kf6 {[%clk 0:00:02.1]} 50.
h3 {[%clk 0:00:12.4]} 50... Ke7 {[%clk 0:00:02.4]} 51. g4 {[%clk 0:00:11.8]}
51... Kd6 {[%clk 0:00:02.3]} 52. Bc4 {[%clk 0:00:10.9]} 52... Re7+ {[%clk
0:00:01.8]} 53. Kf3 {[%clk 0:00:10.5]} 53... hxg4+ {[%clk 0:00:02.7]} 54. hxg4
{[%clk 0:00:10.4]} 54... Re1 {[%clk 0:00:03.6]} 55. a4 {[%clk 0:00:09.7]} 55...
f6 {[%clk 0:00:03.7]} 56. Bf7 {[%clk 0:00:07.6]} 56... g5 {[%clk 0:00:03.9]} 57.
fxg5 {[%clk 0:00:07.3]} 57... fxg5 {[%clk 0:00:04.8]} 58. Bc4 {[%clk 0:00:07.1]}
58... Ke5 {[%clk 0:00:05.1]} 59. Kf2 {[%clk 0:00:06.7]} 59... Rc1 {[%clk
0:00:04.7]} 60. Ke3 {[%clk 0:00:05.9]} 60... Rc3+ {[%clk 0:00:05]} 61. Kd2
{[%clk 0:00:05.7]} 61... Kd4 {[%clk 0:00:04.8]} 62. Be6 {[%clk 0:00:05.1]} 62...
Rg3 {[%clk 0:00:04.8]} 63. Kc2 {[%clk 0:00:04.8]} 63... Rg2+ {[%clk 0:00:04.3]}
64. Kd1 {[%clk 0:00:04.9]} 64... Kc3 {[%clk 0:00:05.2]} 65. Ke1 {[%clk
0:00:04.1]} 65... Rb2 {[%clk 0:00:04.2]} 66. Kd1 {[%clk 0:00:02.8]} 66... Rxb3
{[%clk 0:00:04.6]} 67. Bxb3 {[%clk 0:00:02.4]} 67... Kxb3 {[%clk 0:00:05.5]} 68.
Kd2 {[%clk 0:00:03]} 68... c4 {[%clk 0:00:05.9]} 69. Ke3 {[%clk 0:00:03.5]}
69... c3 {[%clk 0:00:06.5]} 70. Ke4 {[%clk 0:00:03.8]} 70... c2 {[%clk
0:00:07.2]} 71. Kf5 {[%clk 0:00:04.4]} 71... c1=Q {[%clk 0:00:08]} 0-1

[Event "Late-Titled-Tuesday-Blitz-January-30-2024"]
[Site "Chess.com"]
[Date "2024.01.30"]
[Round "3"]
[White "ogpin"]
[Black "GMthekingindian"]
[Result "0-1"]
[WhiteElo "2219"]
[BlackElo "2415"]
[TimeControl "180+1"]
[EndTime "14:30:20 PST"]
[Termination "GMthekingindian won on time"]

1. e4 {[%clk 0:03:00.3]} 1... c5 {[%clk 0:02:59.8]} 2. Nf3 {[%clk 0:03:00.3]}
2... d6 {[%clk 0:03:00.4]} 3. Bb5+ {[%clk 0:03:00.1]} 3... Nd7 {[%clk
0:02:59.9]} 4. a4 {[%clk 0:03:00.5]} 4... a6 {[%clk 0:03:00.2]} 5. Bc4 {[%clk
0:03:00.7]} 5... e6 {[%clk 0:02:59.5]} 6. Nc3 {[%clk 0:03:01.2]} 6... Ngf6
{[%clk 0:02:59.8]} 7. O-O {[%clk 0:03:01.2]} 7... Be7 {[%clk 0:02:59]} 8. d4
{[%clk 0:03:01.2]} 8... cxd4 {[%clk 0:02:59.2]} 9. Nxd4 {[%clk 0:02:57.4]} 9...
Nc5 {[%clk 0:02:55.9]} 10. a5 {[%clk 0:02:56.1]} 10... Nfxe4 {[%clk 0:02:45.6]}
11. Nxe4 {[%clk 0:02:54.8]} 11... Nxe4 {[%clk 0:02:45.8]} 12. Re1 {[%clk
0:02:44.1]} 12... d5 {[%clk 0:02:43]} 13. Bd3 {[%clk 0:02:41.5]} 13... Nf6
{[%clk 0:02:38.1]} 14. Bg5 {[%clk 0:02:30.8]} 14... O-O {[%clk 0:02:37.1]} 15.
Qf3 {[%clk 0:02:31.2]} 15... Bd7 {[%clk 0:02:21.7]} 16. Qh3 {[%clk 0:02:25]}
16... g6 {[%clk 0:02:20.1]} 17. Qh4 {[%clk 0:02:14.1]} 17... Re8 {[%clk
0:02:13.9]} 18. Re3 {[%clk 0:02:06.9]} 18... Ne4 {[%clk 0:02:09]} 19. Bxe7
{[%clk 0:02:04.2]} 19... Qxe7 {[%clk 0:02:09.3]} 20. Qxe7 {[%clk 0:02:03.2]}
20... Rxe7 {[%clk 0:02:10.2]} 21. Bxe4 {[%clk 0:02:03.7]} 21... dxe4 {[%clk
0:02:10.7]} 22. Rxe4 {[%clk 0:02:04.5]} 22... Rc8 {[%clk 0:01:58.1]} 23. c3
{[%clk 0:02:03.7]} 23... Kf8 {[%clk 0:01:52.4]} 24. Rd1 {[%clk 0:01:54.4]} 24...
Rc5 {[%clk 0:01:39.8]} 25. Nb3 {[%clk 0:01:40.8]} 25... Rb5 {[%clk 0:01:37.4]}
26. Rb4 {[%clk 0:01:41.2]} 26... Rxb4 {[%clk 0:01:34.7]} 27. cxb4 {[%clk
0:01:42.1]} 27... Ke8 {[%clk 0:01:28.3]} 28. Nc5 {[%clk 0:01:41.7]} 28... Bc6
{[%clk 0:01:27]} 29. f3 {[%clk 0:01:34.4]} 29... e5 {[%clk 0:01:23.9]} 30. Kf2
{[%clk 0:01:34]} 30... f5 {[%clk 0:01:23.7]} 31. Rd6 {[%clk 0:01:30.5]} 31...
Kf7 {[%clk 0:01:10]} 32. g3 {[%clk 0:01:23.3]} 32... Rc7 {[%clk 0:00:36.2]} 33.
Ke3 {[%clk 0:01:21.5]} 33... Be8 {[%clk 0:00:30.1]} 34. h4 {[%clk 0:01:06.3]}
34... Bc6 {[%clk 0:00:27]} 35. Rd8 {[%clk 0:00:58.6]} 35... Re7 {[%clk
0:00:25.1]} 36. Rh8 {[%clk 0:00:55.7]} 36... Kg7 {[%clk 0:00:24.5]} 37. Rb8
{[%clk 0:00:55.2]} 37... e4 {[%clk 0:00:22.1]} 38. fxe4 {[%clk 0:00:54.9]} 38...
Bxe4 {[%clk 0:00:21.8]} 39. Kf4 {[%clk 0:00:51.5]} 39... Bc6 {[%clk 0:00:21.7]}
40. Rc8 {[%clk 0:00:48.3]} 40... h6 {[%clk 0:00:21.5]} 41. Rd8 {[%clk
0:00:39.1]} 41... Bg2 {[%clk 0:00:19.5]} 42. Rd7 {[%clk 0:00:36.5]} 42... Rxd7
{[%clk 0:00:18.3]} 43. Nxd7 {[%clk 0:00:37.4]} 43... Bc6 {[%clk 0:00:15]} 44.
Ne5 {[%clk 0:00:32]} 44... Bd5 {[%clk 0:00:15]} 45. Nd7 {[%clk 0:00:30]} 45...
Bc6 {[%clk 0:00:12.7]} 46. Nc5 {[%clk 0:00:29.5]} 46... Kf6 {[%clk 0:00:11]} 47.
Nd3 {[%clk 0:00:25.5]} 47... g5+ {[%clk 0:00:11.3]} 48. hxg5+ {[%clk 0:00:26.2]}
48... hxg5+ {[%clk 0:00:12.1]} 49. Ke3 {[%clk 0:00:26.7]} 49... Bb5 {[%clk
0:00:12.3]} 50. Nc5 {[%clk 0:00:24.3]} 50... Bc6 {[%clk 0:00:12.7]} 51. Nd3
{[%clk 0:00:24.7]} 51... Be4 {[%clk 0:00:13]} 52. Nc5 {[%clk 0:00:24.5]} 52...
Bg2 {[%clk 0:00:13.3]} 53. Nd7+ {[%clk 0:00:23]} 53... Ke7 {[%clk 0:00:13.1]}
54. Ne5 {[%clk 0:00:21.9]} 54... Ke6 {[%clk 0:00:13.2]} 55. Kd4 {[%clk
0:00:20.6]} 55... Bh1 {[%clk 0:00:11.7]} 56. Nd3 {[%clk 0:00:19.8]} 56... Kf6
{[%clk 0:00:11.3]} 57. Kc5 {[%clk 0:00:18.1]} 57... Be4 {[%clk 0:00:10.6]} 58.
Nf2 {[%clk 0:00:16.7]} 58... Bf3 {[%clk 0:00:11]} 59. Kd4 {[%clk 0:00:16.9]}
59... f4 {[%clk 0:00:11.2]} 60. gxf4 {[%clk 0:00:16.7]} 60... gxf4 {[%clk
0:00:12.1]} 61. Nd3 {[%clk 0:00:14.4]} 61... Kf5 {[%clk 0:00:12.2]} 62. Nf2
{[%clk 0:00:14.7]} 62... Bc6 {[%clk 0:00:12.2]} 63. Kd3 {[%clk 0:00:13.6]} 63...
Kg5 {[%clk 0:00:12.4]} 64. Ke2 {[%clk 0:00:13.2]} 64... Kh4 {[%clk 0:00:12.9]}
65. Nd3 {[%clk 0:00:09.1]} 65... Bb5 {[%clk 0:00:12.5]} 66. Kf3 {[%clk
0:00:04.8]} 66... Bxd3 {[%clk 0:00:12.7]} 67. Kxf4 {[%clk 0:00:05.7]} 67... Bb5
{[%clk 0:00:13.2]} 68. Ke5 {[%clk 0:00:06.1]} 68... Kg3 {[%clk 0:00:13.7]} 69.
Kd6 {[%clk 0:00:06.4]} 69... Bc6 {[%clk 0:00:14.2]} 70. Kc5 {[%clk 0:00:06.8]}
70... Kf4 {[%clk 0:00:14.5]} 71. Kb6 {[%clk 0:00:06.7]} 71... Ke5 {[%clk
0:00:14.4]} 72. b5 {[%clk 0:00:06.9]} 72... Bxb5 {[%clk 0:00:14.9]} 73. Kxb7
{[%clk 0:00:06.9]} 73... Kd4 {[%clk 0:00:15.7]} 74. Kb6 {[%clk 0:00:07.2]} 74...
Kc4 {[%clk 0:00:16.3]} 75. Kc7 {[%clk 0:00:04.6]} 75... Kc5 {[%clk 0:00:16.9]}
76. b4+ {[%clk 0:00:03]} 76... Kxb4 {[%clk 0:00:17]} 77. Kd6 {[%clk 0:00:03.7]}
77... Kxa5 {[%clk 0:00:17.1]} 78. Kc5 {[%clk 0:00:04.6]} 78... Ka4 {[%clk
0:00:17.5]} 79. Kd4 {[%clk 0:00:05.2]} 79... Kb3 {[%clk 0:00:17.9]} 0-1

[Event "Late-Titled-Tuesday-Blitz-January-30-2024"]
[Site "Chess.com"]
[Date "2024.01.30"]
[Round "3"]
[White "GianmarcoVaR"]
[Black "szachmistrz2500"]
[Result "0-1"]
[WhiteElo "2661"]
[BlackElo "2520"]
[TimeControl "180+1"]
[EndTime "14:30:22 PST"]
[Termination "szachmistrz2500 won by checkmate"]

1. d4 {[%clk 0:02:59.7]} 1... Nf6 {[%clk 0:02:58.6]} 2. Nf3 {[%clk 0:02:59.9]}
2... d5 {[%clk 0:02:54.9]} 3. Bf4 {[%clk 0:02:57.9]} 3... c5 {[%clk 0:02:51.7]}
4. e3 {[%clk 0:02:58.1]} 4... Nc6 {[%clk 0:02:50.5]} 5. Nbd2 {[%clk 0:02:58.7]}
5... Bg4 {[%clk 0:02:47.9]} 6. c3 {[%clk 0:02:59]} 6... e6 {[%clk 0:02:47.7]} 7.
Qb3 {[%clk 0:02:59.5]} 7... Qb6 {[%clk 0:02:43.6]} 8. Qxb6 {[%clk 0:02:56]} 8...
axb6 {[%clk 0:02:43.5]} 9. Bc7 {[%clk 0:02:56.8]} 9... Nd7 {[%clk 0:02:42.6]}
10. Bb5 {[%clk 0:02:53.8]} 10... Be7 {[%clk 0:02:34.2]} 11. Ne5 {[%clk
0:02:53.4]} 11... Ndxe5 {[%clk 0:02:28.1]} 12. Bxe5 {[%clk 0:02:54.3]} 12... f6
{[%clk 0:02:25.9]} 13. Bc7 {[%clk 0:02:53.8]} 13... Bd8 {[%clk 0:02:22.2]} 14.
Bd6 {[%clk 0:02:53.8]} 14... Be7 {[%clk 0:02:19.9]} 15. Bc7 {[%clk 0:02:37.6]}
15... Bd8 {[%clk 0:02:17.3]} 16. Bxd8 {[%clk 0:02:36]} 16... Kxd8 {[%clk
0:02:15.1]} 17. f3 {[%clk 0:02:30.4]} 17... Bh5 {[%clk 0:02:10.9]} 18. Nb3
{[%clk 0:02:26]} 18... c4 {[%clk 0:02:02]} 19. Nd2 {[%clk 0:02:24.3]} 19... Ra5
{[%clk 0:02:00.5]} 20. a4 {[%clk 0:02:20.4]} 20... Kc7 {[%clk 0:01:54.1]} 21. e4
{[%clk 0:02:19]} 21... Bg6 {[%clk 0:01:34.6]} 22. Kf2 {[%clk 0:02:13.3]} 22...
Raa8 {[%clk 0:01:33.7]} 23. Rhe1 {[%clk 0:02:12.6]} 23... Kd6 {[%clk 0:01:31.1]}
24. e5+ {[%clk 0:02:04.4]} 24... fxe5 {[%clk 0:01:18.9]} 25. Bxc6 {[%clk
0:02:04.3]} 25... bxc6 {[%clk 0:01:15.7]} 26. Rxe5 {[%clk 0:02:03.4]} 26... Ra7
{[%clk 0:01:10.3]} 27. f4 {[%clk 0:02:00.3]} 27... Rha8 {[%clk 0:01:08.3]} 28.
Rf1 {[%clk 0:02:00.7]} 28... Rxa4 {[%clk 0:01:02.1]} 29. Rfe1 {[%clk 0:02:01.4]}
29... Bf7 {[%clk 0:00:53.9]} 30. Nf3 {[%clk 0:02:01.6]} 30... Ra1 {[%clk
0:00:50.2]} 31. Ng5 {[%clk 0:02:00.6]} 31... Rxe1 {[%clk 0:00:40.9]} 32. Rxe1
{[%clk 0:01:44.9]} 32... Bg8 {[%clk 0:00:39.4]} 33. g4 {[%clk 0:01:45.3]} 33...
h6 {[%clk 0:00:39.1]} 34. Nf3 {[%clk 0:01:44.6]} 34... Ra2 {[%clk 0:00:37.2]}
35. Re2 {[%clk 0:01:44]} 35... Bh7 {[%clk 0:00:35.4]} 36. Ke3 {[%clk 0:01:42.3]}
36... c5 {[%clk 0:00:31.9]} 37. Ne5 {[%clk 0:01:36.9]} 37... Be4 {[%clk
0:00:30.6]} 38. h4 {[%clk 0:01:35.5]} 38... Ra1 {[%clk 0:00:29.7]} 39. Rf2
{[%clk 0:01:26.3]} 39... Rh1 {[%clk 0:00:27.9]} 40. h5 {[%clk 0:01:26.5]} 40...
Rh3+ {[%clk 0:00:27.6]} 41. Kd2 {[%clk 0:01:25.9]} 41... cxd4 {[%clk 0:00:27.7]}
42. cxd4 {[%clk 0:01:25.6]} 42... b5 {[%clk 0:00:27.5]} 43. f5 {[%clk
0:01:22.6]} 43... exf5 {[%clk 0:00:27.5]} 44. gxf5 {[%clk 0:01:23.5]} 44... Rg3
{[%clk 0:00:25.5]} 45. f6 {[%clk 0:01:23.5]} 45... gxf6 {[%clk 0:00:22.1]} 46.
Rxf6+ {[%clk 0:01:24.4]} 46... Ke7 {[%clk 0:00:21.1]} 47. Rxh6 {[%clk
0:00:14.5]} 47... Rg2+ {[%clk 0:00:18]} 48. Kc3 {[%clk 0:00:15.1]} 48... Rc2+
{[%clk 0:00:17.7]} 49. Kb4 {[%clk 0:00:15.8]} 49... Rxb2+ {[%clk 0:00:18.1]} 50.
Kc5 {[%clk 0:00:15.1]} 50... c3 {[%clk 0:00:18.4]} 51. Nc6+ {[%clk 0:00:16]}
51... Kf7 {[%clk 0:00:16.1]} 52. Ne5+ {[%clk 0:00:14.1]} 52... Kg7 {[%clk
0:00:14.6]} 53. Rc6 {[%clk 0:00:14.5]} 53... c2 {[%clk 0:00:12.8]} 54. Kb6
{[%clk 0:00:14.5]} 54... Rb1 {[%clk 0:00:12.2]} 55. h6+ {[%clk 0:00:14.8]} 55...
Kh7 {[%clk 0:00:11.3]} 56. Nf7 {[%clk 0:00:15.3]} 56... c1=Q {[%clk 0:00:10.7]}
57. Ng5+ {[%clk 0:00:16.2]} 57... Kg8 {[%clk 0:00:06.9]} 58. Rxc1 {[%clk
0:00:07]} 58... Rxc1 {[%clk 0:00:07.3]} 59. Kxb5 {[%clk 0:00:07.9]} 59... Rg1
{[%clk 0:00:07.4]} 60. h7+ {[%clk 0:00:01.9]} 60... Bxh7 {[%clk 0:00:06.5]} 61.
Ne6 {[%clk 0:00:02.8]} 61... Be4 {[%clk 0:00:06.3]} 62. Kc5 {[%clk 0:00:02.9]}
62... Kf7 {[%clk 0:00:06.5]} 63. Nd8+ {[%clk 0:00:02.6]} 63... Kf6 {[%clk
0:00:06.5]} 64. Nc6 {[%clk 0:00:03.5]} 64... Kf5 {[%clk 0:00:06.9]} 65. Ne7+
{[%clk 0:00:03.1]} 65... Kf4 {[%clk 0:00:07.2]} 66. Nxd5+ {[%clk 0:00:03.4]}
66... Bxd5 {[%clk 0:00:07]} 67. Kxd5 {[%clk 0:00:04.3]} 67... Rd1 {[%clk
0:00:07.4]} 68. Ke6 {[%clk 0:00:03.9]} 68... Ke4 {[%clk 0:00:07.5]} 69. d5
{[%clk 0:00:04.8]} 69... Rxd5 {[%clk 0:00:07.7]} 70. Kf6 {[%clk 0:00:05]} 70...
Re5 {[%clk 0:00:08.1]} 71. Kg6 {[%clk 0:00:05.3]} 71... Rf5 {[%clk 0:00:08.5]}
72. Kg7 {[%clk 0:00:05.3]} 72... Ke5 {[%clk 0:00:09.3]} 73. Kg6 {[%clk
0:00:05.7]} 73... Ke6 {[%clk 0:00:09.8]} 74. Kg7 {[%clk 0:00:05.9]} 74... Rf6
{[%clk 0:00:10.2]} 75. Kg8 {[%clk 0:00:06.4]} 75... Rf7 {[%clk 0:00:09.5]} 76.
Kh8 {[%clk 0:00:07.3]} 76... Kf6 {[%clk 0:00:10.1]} 77. Kg8 {[%clk 0:00:08.2]}
77... Kg6 {[%clk 0:00:10.4]} 78. Kh8 {[%clk 0:00:08.3]} 78... Rf8# {[%clk
0:00:10.6]} 0-1

[Event "Late-Titled-Tuesday-Blitz-January-30-2024"]
[Site "Chess.com"]
[Date "2024.01.30"]
[Round "3"]
[White "Kildepiotr"]
[Black "rhungaski"]
[Result "1-0"]
[WhiteElo "2693"]
[BlackElo "2505"]
[TimeControl "180+1"]
[EndTime "14:30:28 PST"]
[Termination "Kildepiotr won on time"]

1. Nf3 {[%clk 0:02:55.6]} 1... g6 {[%clk 0:02:59.4]} 2. g3 {[%clk 0:02:55.5]}
2... Bg7 {[%clk 0:02:59.4]} 3. d4 {[%clk 0:02:56.3]} 3... d6 {[%clk 0:02:58.7]}
4. Bg2 {[%clk 0:02:56.9]} 4... Nf6 {[%clk 0:02:58.9]} 5. O-O {[%clk 0:02:57.2]}
5... O-O {[%clk 0:02:59.1]} 6. Nbd2 {[%clk 0:02:57.8]} 6... c5 {[%clk
0:02:44.5]} 7. dxc5 {[%clk 0:02:56.8]} 7... dxc5 {[%clk 0:02:45.4]} 8. e4 {[%clk
0:02:57.4]} 8... Nc6 {[%clk 0:02:44.2]} 9. c3 {[%clk 0:02:57.2]} 9... h6 {[%clk
0:02:33.5]} 10. Qc2 {[%clk 0:02:53.3]} 10... Be6 {[%clk 0:02:32.1]} 11. Re1
{[%clk 0:02:52.5]} 11... Qc8 {[%clk 0:02:29.7]} 12. a4 {[%clk 0:02:51.3]} 12...
Bh3 {[%clk 0:02:25.2]} 13. Nc4 {[%clk 0:02:50.6]} 13... Bxg2 {[%clk 0:02:24.6]}
14. Kxg2 {[%clk 0:02:51.5]} 14... b6 {[%clk 0:02:22.7]} 15. e5 {[%clk
0:02:43.2]} 15... Nd5 {[%clk 0:02:09.2]} 16. Qe4 {[%clk 0:02:43.2]} 16... Qe6
{[%clk 0:02:06.9]} 17. h4 {[%clk 0:02:39]} 17... Rad8 {[%clk 0:02:04.4]} 18. h5
{[%clk 0:02:38.4]} 18... g5 {[%clk 0:02:02.2]} 19. Bd2 {[%clk 0:02:25.8]} 19...
f5 {[%clk 0:01:38.5]} 20. exf6 {[%clk 0:02:24.6]} 20... Qxf6 {[%clk 0:01:22.3]}
21. Qe6+ {[%clk 0:02:23.8]} 21... Kh8 {[%clk 0:01:19.4]} 22. Qxf6 {[%clk
0:02:23.6]} 22... exf6 {[%clk 0:01:18]} 23. Re6 {[%clk 0:02:23]} 23... Nce7
{[%clk 0:01:12.8]} 24. Rae1 {[%clk 0:02:22.1]} 24... Nc8 {[%clk 0:01:05.1]} 25.
a5 {[%clk 0:02:00.3]} 25... b5 {[%clk 0:00:49.4]} 26. Ne3 {[%clk 0:02:00.4]}
26... Nde7 {[%clk 0:00:27.8]} 27. Ra6 {[%clk 0:01:42.3]} 27... Rd7 {[%clk
0:00:27.5]} 28. Ng4 {[%clk 0:01:35.6]} 28... f5 {[%clk 0:00:19.3]} 29. Nxh6
{[%clk 0:01:31.2]} 29... g4 {[%clk 0:00:18.4]} 30. Ne5 {[%clk 0:01:07.8]} 30...
Rxd2 {[%clk 0:00:18.9]} 31. Nef7+ {[%clk 0:00:50.4]} 31... Kh7 {[%clk
0:00:19.3]} 32. Ng5+ {[%clk 0:00:50.6]} 32... Kh8 {[%clk 0:00:19.8]} 33. Nhf7+
{[%clk 0:00:48.1]} 33... Kg8 {[%clk 0:00:20.2]} 34. h6 {[%clk 0:00:46.8]} 34...
Rxf7 {[%clk 0:00:20.4]} 35. Nxf7 {[%clk 0:00:39.3]} 35... Kxf7 {[%clk
0:00:20.6]} 36. hxg7 {[%clk 0:00:39.4]} 36... Rd7 {[%clk 0:00:19.6]} 37. Re5
{[%clk 0:00:33.1]} 37... Rc7 {[%clk 0:00:18]} 38. g8=Q+ {[%clk 0:00:20.6]} 38...
Kxg8 {[%clk 0:00:18]} 39. Rf6 {[%clk 0:00:20.7]} 39... Kg7 {[%clk 0:00:18.3]}
40. Rfe6 {[%clk 0:00:17.6]} 40... Kf7 {[%clk 0:00:18.3]} 41. f3 {[%clk
0:00:16.2]} 41... gxf3+ {[%clk 0:00:16.9]} 42. Kxf3 {[%clk 0:00:17.1]} 42... Rd7
{[%clk 0:00:17.4]} 43. Re2 {[%clk 0:00:15.5]} 43... Nd6 {[%clk 0:00:16.8]} 44.
Rh6 {[%clk 0:00:15.4]} 44... Ne8 {[%clk 0:00:15.9]} 45. Rh7+ {[%clk 0:00:14.3]}
45... Ng7 {[%clk 0:00:16.3]} 46. Rh6 {[%clk 0:00:11.3]} 46... Ng6 {[%clk
0:00:16.5]} 47. Kf2 {[%clk 0:00:09.9]} 47... Kf6 {[%clk 0:00:16.3]} 48. Rh7
{[%clk 0:00:07.3]} 48... a6 {[%clk 0:00:16.2]} 49. Ke1 {[%clk 0:00:06.7]} 49...
c4 {[%clk 0:00:16.4]} 50. Rd2 {[%clk 0:00:07]} 50... Re7+ {[%clk 0:00:16.3]} 51.
Kd1 {[%clk 0:00:07.4]} 51... Ne5 {[%clk 0:00:14.9]} 52. Rh6+ {[%clk 0:00:07.9]}
52... Ng6 {[%clk 0:00:15.2]} 53. Rh7 {[%clk 0:00:07.9]} 53... Kf7 {[%clk
0:00:11.1]} 54. Re2 {[%clk 0:00:08.1]} 54... Rxe2 {[%clk 0:00:10.9]} 55. Kxe2
{[%clk 0:00:09]} 55... Ne5 {[%clk 0:00:10.8]} 56. Rh6 {[%clk 0:00:08.9]} 56...
Ne6 {[%clk 0:00:10.7]} 57. Rh7+ {[%clk 0:00:08.6]} 57... Ng7 {[%clk 0:00:08.7]}
58. Rh8 {[%clk 0:00:09.1]} 58... Nd7 {[%clk 0:00:06]} 59. Ra8 {[%clk 0:00:09.1]}
59... Nc5 {[%clk 0:00:06.1]} 60. Ke3 {[%clk 0:00:09]} 60... Nge6 {[%clk
0:00:05.9]} 61. Ra7+ {[%clk 0:00:08.3]} 61... Kf6 {[%clk 0:00:06.1]} 62. Kf3
{[%clk 0:00:07.3]} 62... Ke5 {[%clk 0:00:05.8]} 63. Ke3 {[%clk 0:00:07.5]} 63...
Kd5 {[%clk 0:00:05.7]} 64. Rh7 {[%clk 0:00:06.9]} 64... Ke5 {[%clk 0:00:04.6]}
65. Rf7 {[%clk 0:00:07]} 65... Ng5 {[%clk 0:00:04.5]} 66. Rc7 {[%clk 0:00:06.1]}
66... Kd6 {[%clk 0:00:02.6]} 67. Ra7 {[%clk 0:00:04.2]} 67... Nge4 {[%clk
0:00:02.1]} 68. Kf4 {[%clk 0:00:04.3]} 68... Nd3+ {[%clk 0:00:01.9]} 69. Kxf5
{[%clk 0:00:04.6]} 69... Nxg3+ {[%clk 0:00:02.7]} 70. Kg4 {[%clk 0:00:04.7]}
70... Ne4 {[%clk 0:00:03]} 71. Rxa6+ {[%clk 0:00:05.3]} 71... Kc5 {[%clk
0:00:03.9]} 72. Re6 {[%clk 0:00:05.3]} 72... Nd6 {[%clk 0:00:03.8]} 73. a6
{[%clk 0:00:05.4]} 73... Nxb2 {[%clk 0:00:02.2]} 74. a7 {[%clk 0:00:05.3]} 74...
Na4 {[%clk 0:00:01.6]} 75. a8=Q {[%clk 0:00:05.6]} 75... Nxc3 {[%clk 0:00:02.5]}
76. Rxd6 {[%clk 0:00:05.4]} 76... Kxd6 {[%clk 0:00:02.9]} 77. Qf3 {[%clk
0:00:04.9]} 77... Nd5 {[%clk 0:00:02.9]} 78. Kf5 {[%clk 0:00:04.8]} 78... Kc5
{[%clk 0:00:03.8]} 79. Ke4 {[%clk 0:00:05]} 79... Nb4 {[%clk 0:00:02.5]} 80.
Qf8+ {[%clk 0:00:05.1]} 1-0